bitfinex-derivatives/quotes_ETHF0:USTF0_20250320
["timestamp","ask_amount","ask_price","bid_price","bid_amount"]
[1742461803114,7.73038,2015.3,2015.2,2.47181938]
[1742461804014,7.73038,2015.3,2015.2,3.46414938]
[1742461805314,7.73038,2015.3,2015.2,2.47181938]
[1742461806116,7.73038,2015.3,2015.2,3.46414938]
[1742461806717,11.20378,2015.3,2015.2,3.46414938]
[1742461807517,10.2115,2015.3,2015.2,3.46414938]
[1742461808418,11.20378,2015.3,2015.2,3.46425113]
[1742461808917,10.2115,2015.3,2015.2,3.46425113]
[1742461809521,11.20378,2015.3,2015.2,3.46425113]
[1742461810519,8.7723,2015.3,2015.2,3.46425113]
[1742461811522,9.76458,2015.3,2015.2,3.46425113]
[1742461811719,9.76458,2015.3,2015.2,2.47192113]
[1742461811922,11.00508,2015.3,2015.2,2.47192113]
[1742461812426,11.00508,2015.3,2015.2,3.46425113]
[1742461812823,12.44348,2015.3,2015.2,3.46425113]
[1742461813021,11.4512,2015.3,2015.2,3.46425113]
[1742461813822,12.44348,2015.3,2015.2,3.46425113]
[1742461814720,12.44348,2015.3,2015.2,3.46446727]
[1742461817324,15.91688,2015.3,2015.2,3.46446727]
[1742461818423,15.91688,2015.3,2015.2,2.47213727]
[1742461820338,15.91688,2015.3,2015.2,1.16183727]
[1742461820734,15.91688,2015.3,2015.2,0.53173295]
[1742461820935,0.99233,2015.2,2015.1,3.2078]
[1742461821241,6.91783,2015.2,2015.1,3.73976749]
[1742461821741,6.91783,2015.2,2015.1,4.37040693]
[1742461822235,6.91783,2015.2,2015.1,3.73976749]
[1742461822943,6.91783,2015.2,2015.1,3.739575]
[1742461826937,10.12563,2015.2,2015.1,0.531775]
[1742461827448,0.99248,2014.9,2014.8,1.372]
[1742461827630,4.21048,2014.9,2014.8,1.90360351]
[1742461827836,4.21048,2014.9,2014.8,2.53391451]
[1742461828238,0.99267,2014.6,2014.1,5.96]
[1742461828537,3.218,2014.6,2014.5,0.99268]
[1742461828738,3.22544472,2014.6,2014.5,1.66650244]
[1742461828938,3.22544472,2014.6,2014.5,3.65030244]
[1742461831038,0.00744472,2014.6,2014.5,3.65030244]
[1742461832534,0.00744472,2014.6,2014.5,6.15030244]
[1742461832948,0.00744472,2014.6,2014.5,3.65030244]
[1742461833139,0.00744472,2014.6,2014.5,2.97648]
[1742461833344,0.00744472,2014.6,2014.5,3.64940295]
[1742461834248,0.00744472,2014.6,2014.5,9.60940295]
[1742461835244,0.00744472,2014.6,2014.5,9.60936257]
[1742461841448,0.00744472,2014.6,2014.5,9.60952838]
[1742461842542,1.99294472,2014.6,2014.5,9.60952838]
[1742461844149,3.23384472,2014.6,2014.5,9.60952838]
[1742461845545,3.23384472,2014.6,2014.5,9.60968594]
[1742461846655,4.47474472,2014.6,2014.5,9.60968594]
[1742461849752,4.47474472,2014.6,2014.5,9.60976399]
[1742461853953,4.47474472,2014.6,2014.5,9.61023882]
[1742461855753,4.47474472,2014.6,2014.5,9.61031178]
[1742461857558,5.91154472,2014.6,2014.5,9.61031178]
[1742461857754,5.91154472,2014.6,2014.5,8.93648]
[1742461857962,5.91154472,2014.6,2014.5,9.61040352]
[1742461858755,8.57134472,2014.6,2014.5,9.61040352]
[1742461859864,8.57134472,2014.6,2014.5,9.61045414]
[1742461861158,8.57134472,2014.6,2014.5,8.95885414]
[1742461861363,8.57134472,2014.6,2014.5,8.95908258]
[1742461862565,8.57134472,2014.6,2014.5,7.62688258]
[1742461862862,9.85694472,2014.6,2014.5,7.62688258]
[1742461863462,9.85694472,2014.6,2014.5,1.66669585]
[1742461865069,10.84957472,2014.6,2014.5,1.66669585]
[1742461865276,9.85694472,2014.6,2014.5,1.66669585]
[1742461867471,9.85694472,2014.6,2014.5,1.66652714]
[1742461869566,9.85694472,2014.6,2014.5,1.66678558]
[1742461869966,9.85694472,2014.6,2014.5,2.35308558]
[1742461871663,9.85694472,2014.6,2014.5,2.35321061]
[1742461881568,9.85694472,2014.6,2014.5,3.74361061]
[1742461882476,4.18677799,2014.6,2014.5,3.74361061]
[1742461882778,4.0966,2014.6,2014.5,6.95961061]
[1742461885975,4.0966,2014.6,2014.5,6.9591623]
[1742461891775,7.5712,2014.6,2014.5,6.9591623]
[1742461892374,7.5712,2014.6,2014.5,3.0568623]
[1742461892574,8.56383,2014.6,2014.5,1.6664623]
[1742461892776,7.5712,2014.6,2014.5,1.6664623]
[1742461892975,7.5712,2014.6,2014.5,1.66662108]
[1742461893176,7.5712,2014.6,2014.5,0.99268]
[1742461893385,9.98393,2014.6,2014.5,0.99268]
[1742461893584,9.98393,2014.6,2014.5,1.66663526]
[1742461893784,9.98393,2014.6,2014.5,0.99268]
[1742461893988,8.9913,2014.6,2014.5,0.99268]
[1742461894281,8.9913,2014.6,2014.5,1.66662833]
[1742461896179,8.9913,2014.6,2014.5,1.66676966]
[1742461900280,8.9913,2014.6,2014.5,1.66691185]
[1742461904286,8.9913,2014.6,2014.5,0.99268]
[1742461904586,8.9913,2014.6,2014.5,1.66705316]
[1742461906295,8.9913,2014.6,2014.5,1.66714264]
[1742461906885,9.98393,2014.6,2014.5,0.67446264]
[1742461907483,0.99268,2014.5,2014.4,0.99269]
[1742461907683,3.70648,2014.5,2014.4,1.66722378]
[1742461907883,2.7138,2014.5,2014.4,1.66722378]
[1742461908487,2.7138,2014.5,2014.4,1.66711307]
[1742461908891,2.7138,2014.5,2014.4,3.01971307]
[1742461909988,1.3652,2014.5,2014.4,3.01971307]
[1742461910391,2.0417,2014.5,2014.4,3.01971307]
[1742461910690,2.0417,2014.5,2014.4,3.01950903]
[1742461912695,2.0417,2014.5,2014.4,3.01948092]
[1742461914091,5.5165,2014.5,2014.4,3.01948092]
[1742461914591,5.5165,2014.5,2014.4,3.0195395]
[1742461916590,6.9509,2014.5,2014.4,3.0195395]
[1742461916993,6.9509,2014.5,2014.4,3.01969928]
[1742461917298,6.2744,2014.5,2014.4,3.01969928]
[1742461917499,6.2744,2014.5,2014.4,3.66969928]
[1742461918902,6.2744,2014.5,2014.4,3.66986696]
[1742461919103,4.9092,2014.5,2014.4,3.66986696]
[1742461919599,6.3058,2014.5,2014.4,3.66986696]
[1742461920794,6.3058,2014.5,2014.4,3.67009863]
[1742461922600,4.9092,2014.5,2014.4,3.67009863]
[1742461923002,6.2953,2014.5,2014.4,3.67009863]
[1742461929813,9.7701,2014.5,2014.4,3.67009863]
[1742461930305,10.76278,2014.5,2014.4,3.02009863]
[1742461930615,9.7701,2014.5,2014.4,3.02060613]
[1742461931212,10.76278,2014.5,2014.4,3.02060613]
[1742461931510,9.7701,2014.5,2014.4,3.02060613]
[1742461933905,10.76278,2014.5,2014.4,3.02060613]
[1742461935014,10.76278,2014.5,2014.4,0.67531613]
[1742461935814,10.76278,2014.5,2014.4,1.66804613]
[1742461936919,9.7701,2014.5,2014.4,1.66804613]
[1742461937210,9.7701,2014.5,2014.4,3.00354613]
[1742461938903,9.7701,2014.5,2014.4,3.00353545]
[1742461940919,9.7701,2014.5,2014.4,3.00337879]
[1742461942317,9.7701,2014.5,2014.4,1.66787879]
[1742461943115,9.7701,2014.5,2014.4,3.08536791]
[1742461944320,9.7701,2014.5,2014.4,3.74726791]
[1742461945025,9.7701,2014.5,2014.4,3.07213]
[1742461945322,9.7701,2014.5,2014.4,3.74719242]
[1742461946215,9.7701,2014.5,2014.4,3.08529242]
[1742461947127,9.7701,2014.5,2014.4,3.08528927]
[1742461949126,9.7701,2014.5,2014.4,2.41023]
[1742461949326,9.7701,2014.5,2014.4,3.08530892]
[1742461951329,9.7701,2014.5,2014.4,3.08530206]
[1742461952226,12.9841,2014.5,2014.3,3.21524472]
[1742461952527,1.2888,2014.4,2014.3,4.20802472]
[1742461952728,1.2888,2014.4,2014.3,4.88319681]
[1742461953429,1.2888,2014.4,2014.3,6.26229681]
[1742461955932,6.9496,2014.5,2014.4,0.99273]
[1742461956133,8.3094,2014.5,2014.4,3.01060209]
[1742461956629,8.3094,2014.5,2014.4,43.81060209]
[1742461957532,8.3094,2014.5,2014.4,43.81046318]
[1742461959234,8.9744,2014.5,2014.4,43.81046318]
[1742461959437,8.9744,2014.5,2014.4,43.13543]
[1742461959635,8.9744,2014.5,2014.4,43.81052343]
[1742461959928,9.7552,2014.5,2014.4,43.81052343]
[1742461960725,11.1879,2014.5,2014.4,43.81052343]
[1742461961635,11.1879,2014.5,2014.4,43.81056388]
[1742461961832,12.18058,2014.5,2014.4,0.67513388]
[1742461962241,12.18058,2014.5,2014.4,1.66786388]
[1742461962839,12.18058,2014.5,2014.4,0.67513388]
[1742461963642,12.18058,2014.5,2014.4,1.6679277]
[1742461964341,11.1879,2014.5,2014.4,1.6679277]
[1742461964640,11.1879,2014.5,2014.4,3.0512277]
[1742461965336,12.18058,2014.5,2014.4,3.0512277]
[1742461965632,12.18058,2014.5,2014.4,2.05849158]
[1742461966034,12.18058,2014.5,2014.4,1.66792158]
[1742461966734,12.18058,2014.5,2014.4,0.67519158]
[1742461966935,0.99273,2014.4,2014.3,5.52537472]
[1742461967145,1.3415,2014.4,2014.3,6.20064667]
[1742461967736,1.3415,2014.4,2014.3,2.99288522]
[1742461969144,1.3415,2014.4,2014.3,1.67548522]
[1742461969336,2.33423,2014.4,2014.3,1.67548522]
[1742461969536,1.3415,2014.4,2014.3,1.6755447]
[1742461969938,2.33423,2014.4,2014.3,2.9809447]
[1742461970341,2.33423,2014.4,2014.3,0.6828147]
[1742461970742,2.33423,2014.4,2014.3,1.6755947]
[1742461971038,2.33423,2014.4,2014.3,42.4755947]
[1742461971245,2.33423,2014.4,2014.3,41.80022472]
[1742461972540,1.3415,2014.4,2014.3,41.80022472]
[1742461972940,2.33423,2014.4,2014.3,41.80022472]
[1742461973140,2.33423,2014.4,2014.3,40.80744472]
[1742461974038,1.3415,2014.4,2014.3,41.80022472]
[1742461975142,1.3415,2014.4,2014.3,43.12042472]
[1742461976147,2.33423,2014.4,2014.3,43.12042472]
[1742461976446,1.3415,2014.4,2014.3,43.12042472]
[1742461978047,2.33423,2014.4,2014.3,43.12042472]
[1742461978750,2.33423,2014.4,2014.3,42.12764472]
[1742461979251,2.33423,2014.4,2014.3,43.12042472]
[1742461982553,1.3415,2014.4,2014.3,43.12042472]
[1742461982744,4.2597,2014.4,2014.3,43.12042472]
[1742461983151,5.25243,2014.4,2014.3,43.12042472]
[1742461984154,5.25243,2014.4,2014.3,42.12764472]
[1742461984354,5.25243,2014.4,2014.3,43.12042472]
[1742461985855,5.25243,2014.4,2014.3,42.12764472]
[1742461986753,5.25243,2014.4,2014.3,40.80744472]
[1742461987958,5.25243,2014.4,2014.3,41.80022472]
[1742461988151,5.25243,2014.4,2014.3,43.10782472]
[1742461988468,5.25243,2014.4,2014.3,42.11504472]
[1742461989170,6.49343,2014.4,2014.3,42.11504472]
[1742461989369,6.49343,2014.4,2014.3,43.10782472]
[1742461989666,5.5007,2014.4,2014.3,43.10782472]
[1742461989865,5.5007,2014.4,2014.3,43.78318134]
[1742461990067,6.49343,2014.4,2014.3,43.78318134]
[1742461991168,6.49343,2014.4,2014.3,43.10782472]
[1742461992272,6.49343,2014.4,2014.3,43.78367896]
[1742461992976,5.5007,2014.4,2014.3,43.78367896]
[1742461994472,6.49343,2014.4,2014.3,43.78367896]
[1742461994973,5.5007,2014.4,2014.3,43.78367896]
[1742461995962,6.49343,2014.4,2014.3,43.78367896]
[1742461996162,9.96833,2014.4,2014.3,43.78367896]
[1742461996674,11.95403,2014.4,2014.3,43.78367896]
[1742461997174,10.9613,2014.4,2014.3,43.78367896]
[1742461998069,10.9613,2014.4,2014.3,43.78390652]
[1742461998964,11.95403,2014.4,2014.3,43.78390652]
[1742461999775,10.9613,2014.4,2014.3,43.78390652]
[1742462000275,10.9613,2014.4,2014.3,43.78380172]
[1742462000463,11.95403,2014.4,2014.3,43.78380172]
[1742462000667,10.9613,2014.4,2014.3,43.78380172]
[1742462002262,9.6198,2014.4,2014.3,43.78380172]
[1742462004277,9.6198,2014.4,2014.3,43.78338225]
[1742462006176,9.6198,2014.4,2014.3,43.10782472]
[1742462006382,9.6198,2014.4,2014.3,43.78332393]
[1742462007584,9.6198,2014.4,2014.3,46.99112393]
[1742462008073,9.6198,2014.4,2014.3,47.68712393]
[1742462008279,9.6198,2014.4,2014.3,47.68691658]
[1742462010373,9.6198,2014.4,2014.3,47.68660291]
[1742462014390,9.6198,2014.4,2014.3,47.68638612]
[1742462019096,9.6198,2014.4,2014.3,48.38748612]
[1742462022992,10.4003,2014.4,2014.3,48.38748612]
[1742462023490,5.44612,2014.4,2014.3,50.88748612]
[1742462023695,4.62012,2014.4,2014.3,50.88748612]
[1742462023898,2.7662,2014.4,2014.3,50.88748612]
[1742462024095,2.4507,2014.4,2014.3,56.84748612]
[1742462024284,0.7805,2014.4,2014.3,56.84748612]
[1742462024492,1.29424472,2014.8,2014.7,0.99258]
[1742462024797,1.29424472,2014.8,2014.7,4.8783414]
[1742462025298,1.29424472,2014.8,2014.7,6.30198348]
[1742462025299,2.72424472,2014.8,2014.7,6.30198348]
[1742462026592,2.72424472,2014.8,2014.7,6.30160529]
[1742462026995,1.43744472,2014.8,2014.7,6.30160529]
[1742462028594,1.43744472,2014.8,2014.3,46.76744472]
[1742462028793,2.635,2014.7,2014.4,0.67397583]
[1742462028997,1.287,2014.6,2014.5,1.66663583]
[1742462029507,1.287,2014.6,2014.5,4.87443583]
[1742462030794,1.287,2014.6,2014.5,5.51923583]
[1742462030996,1.287,2014.6,2014.5,6.88673583]
[1742462036806,1.8158,2014.6,2014.5,6.88614076]
[1742462038908,1.8158,2014.6,2014.5,6.8863398]
[1742462043605,3.2455,2014.6,2014.5,6.8863398]
[1742462044309,3.2455,2014.6,2014.5,6.21276]
[1742462044514,3.2455,2014.6,2014.5,6.88684521]
[1742462046412,3.2455,2014.6,2014.5,6.24204521]
[1742462047910,4.23813,2014.6,2014.5,3.88188521]
[1742462048612,4.23813,2014.6,2014.5,4.87456521]
[1742462048822,3.2455,2014.6,2014.5,4.87456521]
[1742462049904,1.9585,2014.6,2014.5,4.87456521]
[1742462050105,3.3718,2014.6,2014.5,8.08456521]
[1742462050511,3.3718,2014.6,2014.5,48.88533907]
[1742462050710,3.3718,2014.6,2014.5,45.67533907]
[1742462050911,4.0722,2014.6,2014.5,45.67533907]
[1742462051915,5.06483,2014.6,2014.5,44.68265907]
[1742462052217,4.0722,2014.6,2014.5,45.67533907]
[1742462052613,5.06483,2014.6,2014.5,45.67544768]
[1742462053010,5.06483,2014.6,2014.5,4.87544768]
[1742462053308,5.06483,2014.6,2014.5,4.20048]
[1742462053914,5.06483,2014.6,2014.5,2.1394]
[1742462054121,5.06483,2014.6,2014.5,3.13208]
[1742462058014,5.06483,2014.6,2014.5,2.1394]
[1742462058216,5.06483,2014.6,2014.5,3.13208]
[1742462058617,4.0722,2014.6,2014.5,3.13208]
[1742462058918,5.06483,2014.6,2014.5,3.13208]
[1742462059727,4.0722,2014.6,2014.5,3.13208]
[1742462059917,5.06483,2014.6,2014.5,3.13208]
[1742462060520,4.0722,2014.6,2014.5,3.13208]
[1742462060920,5.06483,2014.6,2014.5,3.13208]
[1742462062628,5.06483,2014.6,2014.5,0.99268]
[1742462064032,4.0722,2014.6,2014.5,0.99268]
[1742462064228,4.0722,2014.6,2014.5,2.33128]
[1742462064429,5.06483,2014.6,2014.5,2.33128]
[1742462065031,4.0722,2014.6,2014.5,2.33128]
[1742462065735,5.06483,2014.6,2014.5,2.33128]
[1742462067034,5.06483,2014.6,2014.5,1.3386]
[1742462067226,5.06483,2014.6,2014.5,0.99268]
[1742462067627,5.06483,2014.6,2014.5,2.28578]
[1742462068229,4.0722,2014.6,2014.5,2.28578]
[1742462069338,5.06483,2014.6,2014.5,2.28578]
[1742462069836,4.0722,2014.6,2014.5,2.28578]
[1742462070228,5.06483,2014.6,2014.5,2.28578]
[1742462071636,4.0722,2014.6,2014.5,2.28578]
[1742462071835,3.3718,2014.6,2014.5,2.96027242]
[1742462072241,4.36443,2014.6,2014.5,2.96027242]
[1742462072832,3.3718,2014.6,2014.5,2.96027242]
[1742462075441,4.36443,2014.6,2014.5,2.96027242]
[1742462075638,3.3718,2014.6,2014.5,2.96027242]
[1742462076136,4.36443,2014.6,2014.5,2.96027242]
[1742462076441,3.3718,2014.6,2014.5,2.96027242]
[1742462076833,4.36443,2014.6,2014.5,1.96759242]
[1742462077034,4.36443,2014.6,2014.5,2.96027242]
[1742462077440,4.36443,2014.6,2014.5,2.96089337]
[1742462078244,3.3718,2014.6,2014.5,2.96089337]
[1742462079145,4.36443,2014.6,2014.5,2.96089337]
[1742462079349,3.3718,2014.6,2014.5,2.96089337]
[1742462079537,3.3718,2014.6,2014.5,2.9610252]
[1742462082746,3.3718,2014.6,2014.5,3.6337252]
[1742462083442,4.36443,2014.6,2014.5,2.9610252]
[1742462083642,5.05813,2014.6,2014.5,2.9610252]
[1742462084346,4.0655,2014.6,2014.5,2.9610252]
[1742462084942,5.05813,2014.6,2014.5,2.9610252]
[1742462085847,8.26613,2014.6,2014.5,2.96120288]
[1742462087741,8.26613,2014.6,2014.5,1.668133]
[1742462087946,8.26613,2014.6,2014.5,0.675453]
[1742462088948,0.99273,2014.4,2014.3,0.00744472]
[1742462089143,6.19232,2014.5,2014.3,0.68298734]
[1742462089347,4.90002,2014.5,2014.4,0.99273]
[1742462089655,3.9073,2014.5,2014.4,2.27783]
[1742462092356,4.89998,2014.5,2014.4,2.27783]
[1742462093255,0.99273,2014.4,2014.3,41.80017472]
[1742462093450,4.20073,2014.4,2014.3,43.80034789]
[1742462093755,3.208,2014.4,2014.3,43.80034789]
[1742462094148,4.20073,2014.4,2014.3,43.12537472]
[1742462094556,4.72973,2014.4,2014.3,43.12542472]
[1742462095059,4.72973,2014.4,2014.3,42.13264472]
[1742462095551,4.72973,2014.4,2014.3,43.12542472]
[1742462100359,4.72973,2014.4,2014.3,42.13264472]
[1742462101648,4.72973,2014.4,2014.3,43.12542472]
[1742462102459,3.737,2014.4,2014.3,43.12542472]
[1742462102852,4.72973,2014.4,2014.3,43.12542472]
[1742462103859,4.72973,2014.4,2014.3,42.13264472]
[1742462104360,6.62361223,2014.4,2013.6,5.96]
[1742462104555,3.2078,2013.8,2013.4,3.2078]
[1742462104750,0.99316,2013.6,2013.4,3.2078]
[1742462105061,0.99327,2013.3,2013.2,19.33717078]
[1742462105263,0.99327,2013.3,2013.2,20.01244809]
[1742462105453,0.99327,2013.3,2013.2,60.13717078]
[1742462105657,2.42247,2013.3,2013.2,62.47239078]
[1742462105861,1.4292,2013.3,2013.2,62.47239078]
[1742462107260,4.6372,2013.3,2013.2,62.47239078]
[1742462108162,4.6372,2013.3,2013.2,43.13522]
[1742462108458,4.6372,2013.3,2013.2,43.80422]
[1742462110463,1.4292,2013.3,2013.2,43.80422]
[1742462112562,1.4292,2013.3,2013.2,43.13522]
[1742462113359,2.42247,2013.3,2013.2,43.13522]
[1742462113666,1.4292,2013.3,2013.2,43.13522]
[1742462115771,3.4159,2013.3,2013.2,43.13522]
[1742462116471,7.61817,2013.3,2013.2,43.13522]
[1742462116671,6.6249,2013.3,2013.2,43.13522]
[1742462119161,6.8103,2013.3,2013.2,2.33522]
[1742462124682,7.4696,2013.3,2013.2,0.99332]
[1742462124979,7.4696,2013.3,2013.2,2.28172]
[1742462125383,8.779,2013.3,2013.2,2.28172]
[1742462125575,8.779,2013.3,2013.2,2.99262]
[1742462125977,8.1197,2013.3,2013.2,2.99262]
[1742462129077,8.7995,2013.3,2013.2,2.99262]
[1742462131183,8.7995,2013.3,2013.2,0.99332]
[1742462131584,8.7995,2013.3,2013.2,2.29432]
[1742462133485,8.7995,2013.3,2013.1,3.2078]
[1742462133788,1.9783,2013.2,2013.1,5.50697]
[1742462133989,1.9783,2013.2,2013.1,4.20117]
[1742462134187,2.97162,2013.2,2013.1,4.20117]
[1742462134488,2.97162,2013.2,2013.0,40.8]
[1742462134683,1.291,2013.1,2013.0,41.79342]
[1742462136987,1.291,2013.1,2013.0,0.99342]
[1742462136988,2.28437,2013.1,2013.0,0.99342]
[1742462137285,2.28442,2013.1,2013.0,0.99342]
[1742462137585,4.499,2013.1,2013.0,0.99342]
[1742462137778,5.49237,2013.1,2013.0,0.99342]
[1742462138592,4.499,2013.1,2013.0,0.99342]
[1742462138892,4.499,2013.1,2012.5,3.2078]
[1742462139088,4.20128,2012.9,2012.8,0.99348]
[1742462139283,7.40928,2012.9,2012.8,0.99348]
[1742462139488,9.57468,2012.9,2012.8,0.99348]
[1742462139689,0.99357,2012.8,2012.7,0.99352]
[1742462139892,2.31077,2012.8,2012.7,0.99357]
[1742462140593,2.84027,2012.8,2012.7,0.99357]
[1742462140794,6.31797,2012.8,2012.7,0.99357]
[1742462141089,6.31794,2012.8,2012.7,0.99357]
[1742462141291,5.3244,2012.8,2012.7,0.99357]
[1742462144199,6.31792,2012.8,2012.7,0.99357]
[1742462145201,6.31793,2012.8,2012.7,0.99357]
[1742462145393,5.3244,2012.8,2012.7,0.99357]
[1742462145890,6.31792,2012.8,2012.7,0.99357]
[1742462146095,8.44932,2012.8,2012.7,0.99357]
[1742462146691,7.4558,2012.8,2012.7,0.99357]
[1742462147503,8.44932,2012.8,2012.7,0.99357]
[1742462147702,7.4558,2012.8,2012.7,0.99357]
[1742462147893,8.44932,2012.8,2012.7,0.99357]
[1742462148091,7.4558,2012.8,2012.7,0.99357]
[1742462148500,7.4558,2012.8,2012.6,0.99359]
[1742462148705,6.29637,2012.7,2012.6,0.99359]
[1742462149003,7.72477,2012.7,2012.6,0.99359]
[1742462149198,0.99362,2012.6,2012.5,1.63826]
[1742462149405,3.09342,2012.6,2012.5,3.02176]
[1742462150001,5.3076,2012.6,2012.2,3.2078]
[1742462150195,0.99376,2012.4,2012.3,0.99374]
[1742462150403,5.612,2012.5,2012.4,0.99371]
[1742462150603,4.2017,2012.5,2012.4,0.99371]
[1742462150793,0.99374,2012.4,2012.3,0.99373]
[1742462152396,4.20168,2012.5,2012.4,0.99371]
[1742462153104,0.99376,2012.4,2012.3,0.99374]
[1742462153306,0.99376,2012.3,2012.2,4.20157]
[1742462153506,1.68466,2012.3,2012.2,4.20157]
[1742462154302,4.89366,2012.3,2012.2,4.20157]
[1742462154809,4.89366,2012.3,2012.2,3.2078]
[1742462155211,1.68466,2012.3,2012.2,4.20161]
[1742462155508,4.89366,2012.3,2012.2,4.20161]
[1742462155907,3.8999,2012.3,2012.2,4.20161]
[1742462157004,4.89366,2012.3,2012.2,4.20161]
[1742462157200,3.8999,2012.3,2012.2,4.20161]
[1742462158010,4.0853,2012.3,2012.2,4.20161]
[1742462158904,0.1854,2012.3,2012.2,4.20161]
[1742462159112,0.1854,2012.3,2012.2,4.84901]
[1742462160111,0.1854,2012.3,2012.2,1.64121]
[1742462160503,0.1854,2012.3,2012.2,2.97241]
[1742462163110,2.1731,2012.3,2012.2,2.97241]
[1742462163308,3.16686,2012.3,2012.2,2.97241]
[1742462163519,3.16686,2012.3,2012.2,1.3312]
[1742462163715,6.37466,2012.3,2012.2,1.3312]
[1742462164413,0.99381,2012.2,2012.1,6.95383]
[1742462164615,0.99381,2012.2,2012.1,8.32763]
[1742462164912,6.37468,2012.3,2012.2,0.99381]
[1742462165315,0.99381,2012.2,2012.1,8.32763]
[1742462165516,0.99381,2012.2,2012.1,6.95383]
[1742462165708,4.20281,2012.2,2012.1,6.95383]
[1742462165909,3.8887,2012.2,2012.0,2.058]
[1742462166110,0.6569,2012.1,2012.0,0.99391]
[1742462166518,1.65076,2012.1,2012.0,0.99391]
[1742462166712,0.6569,2012.1,2012.0,0.99391]
[1742462167313,0.6569,2012.1,2011.6,1.3655]
[1742462167516,7.41075,2012.0,2011.9,0.99395]
[1742462167814,0.99397,2011.9,2011.8,0.99397]
[1742462168005,7.41075,2012.0,2011.9,0.99396]
[1742462168204,6.4168,2012.0,2011.9,0.99396]
[1742462168418,7.845,2012.0,2011.9,0.99396]
[1742462169910,9.2065,2012.0,2011.9,0.99396]
[1742462170314,10.20041,2012.0,2011.9,0.99396]
[1742462171808,10.20046,2012.0,2011.9,0.99396]
[1742462172015,0.99398,2011.9,2011.8,0.99396]
[1742462172320,2.044,2011.9,2011.8,0.99396]
[1742462172619,2.044,2011.9,2011.8,2.30516]
[1742462174215,1.4282,2012.0,2011.9,0.99396]
[1742462174422,4.6372,2012.0,2011.9,2.95606]
[1742462175013,5.63111,2012.0,2011.9,2.95606]
[1742462175215,7.03231,2012.0,2011.9,2.95606]
[1742462175410,7.03231,2012.0,2011.9,1.9621]
[1742462175619,7.03231,2012.0,2011.9,2.95606]
[1742462176316,6.0384,2012.0,2011.9,2.95606]
[1742462176519,6.0384,2012.0,2011.9,3.63337875]
[1742462176716,6.0384,2012.0,2011.9,2.95606]
[1742462177020,7.03231,2012.0,2011.9,2.95606]
[1742462177220,7.03231,2012.0,2011.9,1.9621]
[1742462177822,7.56211,2012.0,2011.9,2.63914912]
[1742462178022,7.56211,2012.0,2011.9,3.63310912]
[1742462178219,6.5682,2012.0,2011.9,3.63310912]
[1742462178610,6.5682,2012.0,2011.9,3.63310898]
[1742462178816,7.56211,2012.0,2011.9,3.63310898]
[1742462179021,6.5682,2012.0,2011.9,3.63310898]
[1742462180125,7.56211,2012.0,2011.9,2.95606]
[1742462180625,10.76991,2012.0,2011.9,1.9621]
[1742462180925,10.76991,2012.0,2011.9,2.95606]
[1742462181127,10.76991,2012.0,2011.9,3.63339745]
[1742462182130,10.76991,2012.0,2011.9,2.95606]
[1742462182723,10.76991,2012.0,2011.6,46.49308]
[1742462182724,0.99406,2011.7,2011.6,0.99411]
[1742462182924,4.20304,2011.8,2011.7,0.99403]
[1742462183229,3.209,2011.8,2011.7,1.67141292]
[1742462183431,4.20301,2011.8,2011.7,0.67738292]
[1742462184024,5.51821,2011.8,2011.7,3.04114292]
[1742462184525,4.5242,2011.8,2011.7,3.04114292]
[1742462184917,5.51821,2011.8,2011.7,3.04114292]
[1742462185630,5.51821,2011.8,2011.7,2.04708292]
[1742462185823,5.51821,2011.8,2011.7,2.04707543]
[1742462186027,5.51821,2011.8,2011.7,3.04113543]
[1742462186227,5.51821,2011.8,2011.7,2.04707543]
[1742462186534,5.51821,2011.8,2011.7,0.67737543]
[1742462186733,4.5242,2011.8,2011.5,1.359]
[1742462186935,5.55756,2011.7,2011.6,0.67741353]
[1742462187130,5.55756,2011.7,2011.5,42.159]
[1742462187439,0.99416,2011.5,2011.4,0.99416]
[1742462187624,0.99416,2011.5,2011.4,2.35316]
[1742462187828,2.32566,2011.5,2011.4,42.159]
[1742462188029,0.99421,2011.4,2011.3,3.2078]
[1742462188234,5.53471,2011.4,2011.3,3.88525095]
[1742462188436,5.72001,2011.4,2011.3,3.88525095]
[1742462190227,5.72001,2011.4,2011.3,3.88527634]
[1742462190539,8.92781,2011.4,2011.3,0.67747634]
[1742462190831,7.9336,2011.4,2011.0,46.0912]
[1742462191041,7.9336,2011.4,2011.2,0.99431]
[1742462191042,3.68069,2011.3,2011.2,0.99431]
[1742462191239,3.68069,2011.3,2011.2,0.67749722]
[1742462192549,3.68069,2011.3,2011.2,0.99431]
[1742462192550,2.6864,2011.3,2011.2,0.99431]
[1742462192742,2.0336,2011.3,2011.2,0.99431]
[1742462193349,1.3255,2011.3,2011.2,0.99431]
[1742462193551,2.0254,2011.3,2011.2,1.67181056]
[1742462194347,2.0254,2011.3,2011.2,3.08571056]
[1742462194746,1.3255,2011.3,2011.2,3.08571056]
[1742462194941,6.60954472,2011.4,2011.3,0.99426]
[1742462195148,6.60954472,2011.4,2011.3,3.77236056]
[1742462195356,3.40174472,2011.4,2011.3,6.98016056]
[1742462195555,0.19274472,2011.4,2011.3,6.98016056]
[1742462196052,0.19274472,2011.4,2011.3,3.77236056]
[1742462196250,0.19274472,2011.4,2011.3,3.09486]
[1742462196444,0.19274472,2011.4,2011.3,3.7722967]
[1742462197151,3.40054472,2011.4,2011.3,3.7722967]
[1742462197654,3.40054472,2011.4,2011.3,3.09486]
[1742462198056,4.39475472,2011.4,2011.3,3.09486]
[1742462198250,5.70695472,2011.4,2011.3,3.09486]
[1742462198552,7.13465472,2011.4,2011.3,3.09486]
[1742462198754,6.14044472,2011.4,2011.3,3.77230549]
[1742462199655,7.13465472,2011.4,2011.3,3.77230549]
[1742462200445,7.13465472,2011.4,2011.3,2.1006]
[1742462200644,7.13465472,2011.4,2011.3,2.77804504]
[1742462200849,0.99431,2011.2,2011.1,0.6929]